bitfinex/quotes_BTCUSD_20250314
["timestamp","ask_amount","ask_price","bid_price","bid_amount"]
[1741938124674,7.555e-05,82337.0,82336.0,0.53395774]
[1741938124876,7.555e-05,82337.0,82336.0,0.53995774]
[1741938125079,7.555e-05,82337.0,82336.0,0.40331774]
[1741938125497,7.555e-05,82337.0,82336.0,0.02116574]
[1741938125712,0.25512455,82337.0,82336.0,0.02116574]
[1741938126129,0.25512455,82337.0,82336.0,0.012]
[1741938126863,0.25512455,82337.0,82336.0,0.006]
[1741938127043,0.25512455,82337.0,82336.0,0.01]
[1741938127466,0.255052,82336.0,82335.0,0.0003382]
[1741938127699,7.555e-05,82337.0,82336.0,0.004]
[1741938127930,0.24297955,82337.0,82336.0,0.006]
[1741938128154,0.24297955,82337.0,82336.0,0.011159]
[1741938128804,7.555e-05,82337.0,82336.0,0.013159]
[1741938129083,7.555e-05,82337.0,82336.0,0.29796727]
[1741938129315,0.01910841,82337.0,82336.0,0.29796727]
[1741938129544,0.01910841,82337.0,82336.0,0.37386727]
[1741938129978,0.01910841,82337.0,82336.0,0.42066727]
[1741938130893,0.01910841,82337.0,82336.0,0.42466727]
[1741938131124,0.01910841,82337.0,82336.0,0.43066727]
[1741938131371,0.01910841,82337.0,82336.0,0.42466727]
[1741938131785,0.01910841,82337.0,82336.0,0.42966727]
[1741938132976,0.01910841,82337.0,82336.0,0.43566727]
[1741938139157,0.255009,82350.0,82344.0,0.242883]
[1741938139348,0.26190286,82349.0,82345.0,0.26805981]
[1741938139532,0.26189986,82349.0,82345.0,0.03432409]
[1741938139733,0.242868,82349.0,82345.0,0.27720209]
[1741938139953,0.255009,82350.0,82346.0,0.02899652]
[1741938140353,0.242869,82349.0,82346.0,0.02899652]
[1741938140558,0.255009,82350.0,82346.0,0.27187252]
[1741938140786,0.242866,82350.0,82347.0,0.242874]
[1741938140962,0.2431982,82352.0,82348.0,0.24287]
[1741938141159,0.242863,82351.0,82349.0,0.02975627]
[1741938141537,0.00121537,82350.0,82349.0,0.02975627]
[1741938141761,0.24407737,82351.0,82349.0,0.02975627]
[1741938141961,0.24408037,82350.0,82349.0,0.02975627]
[1741938142225,0.242865,82350.0,82349.0,0.02975627]
[1741938142547,0.242865,82350.0,82349.0,0.03175627]
[1741938142754,0.2618969,82350.0,82349.0,0.03175627]
[1741938143621,0.0190319,82350.0,82349.0,0.02975627]
[1741938143822,0.0190319,82350.0,82349.0,0.28476727]
[1741938144667,0.0190319,82350.0,82349.0,0.27462427]
[1741938144862,0.0190319,82350.0,82349.0,0.27662427]
[1741938145738,0.0190319,82350.0,82349.0,0.28876727]
[1741938150293,0.0190319,82350.0,82349.0,0.41466727]
[1741938151323,0.0190319,82350.0,82349.0,0.41066727]
[1741938151548,0.0003382,82352.0,82351.0,0.255005]
[1741938151731,0.0003382,82352.0,82351.0,0.28018581]
[1741938152920,0.0003382,82352.0,82351.0,0.28418581]
[1741938153507,0.0003382,82352.0,82351.0,0.28818581]
[1741938158692,2e-07,82352.0,82351.0,0.66758581]
[1741938158864,2e-07,82352.0,82351.0,0.71328581]
[1741938159084,2e-07,82352.0,82351.0,0.72462786]
[1741938159676,2e-07,82352.0,82351.0,0.72062786]
[1741938159807,2e-07,82352.0,82351.0,0.72462786]
[1741938160230,2e-07,82352.0,82351.0,0.72062786]
[1741938160741,2e-07,82352.0,82351.0,0.72262786]
[1741938161052,2e-07,82352.0,82351.0,0.72862786]
[1741938161399,2e-07,82352.0,82351.0,0.72262786]
[1741938161615,2e-07,82352.0,82351.0,0.72862786]
[1741938162282,2e-07,82352.0,82351.0,0.73362786]
[1741938162491,2e-07,82352.0,82351.0,0.72162786]
[1741938162827,2e-07,82352.0,82351.0,0.72762786]
[1741938163127,0.01902445,82374.0,82366.0,0.679158]
[1741938163128,7.5e-07,82374.0,82366.0,0.679158]
[1741938163332,8.5e-07,82381.0,82380.0,0.303715]
[1741938163533,0.00041035,82381.0,82380.0,0.822835]
[1741938163733,3.5e-07,82383.0,82382.0,0.554909]
[1741938163964,0.0001231,82383.0,82382.0,0.68896179]
[1741938165073,0.0001231,82383.0,82382.0,0.70778402]
[1741938165417,0.0001231,82383.0,82382.0,0.71307581]
[1741938165636,0.0001231,82383.0,82382.0,0.71907581]
[1741938166348,1e-07,82389.0,82388.0,0.55489]
[1741938166576,1e-07,82389.0,82388.0,0.70387081]
[1741938167010,1e-07,82389.0,82388.0,0.70887081]
[1741938168058,1e-07,82389.0,82388.0,0.71487081]
[1741938168264,1e-07,82389.0,82388.0,0.7321626]
[1741938168592,1e-07,82389.0,82388.0,0.7261626]
[1741938168791,1e-07,82389.0,82388.0,0.7321626]
[1741938169263,1e-07,82389.0,82388.0,0.7261626]
[1741938169475,1e-07,82389.0,82388.0,0.85090179]
[1741938169878,1e-07,82389.0,82388.0,0.83961]
[1741938170088,1e-07,82389.0,82388.0,0.84461]
[1741938170283,1e-07,82389.0,82388.0,0.83861]
[1741938170502,1e-07,82389.0,82388.0,0.86327347]
[1741938170793,1e-07,82389.0,82388.0,0.86927347]
[1741938171196,1e-07,82404.0,82397.0,0.012136]
[1741938171410,1e-07,82404.0,82403.0,0.634644]
[1741938172439,1e-07,82404.0,82403.0,0.681744]
[1741938172863,1e-07,82404.0,82403.0,0.687744]
[1741938173037,1e-07,82404.0,82403.0,0.681744]
[1741938173608,1e-07,82404.0,82403.0,0.687744]
[1741938173814,1e-07,82404.0,82403.0,0.6881535]
[1741938174224,0.39989943,82412.0,82411.0,0.55482]
[1741938174456,0.39989943,82412.0,82411.0,0.70346]
[1741938175942,0.39989943,82412.0,82411.0,0.70946]
[1741938176324,0.39989943,82412.0,82411.0,0.70914]
[1741938176536,0.39989943,82412.0,82411.0,0.71514]
[1741938180892,0.10127865,82412.0,82411.0,0.71514]
[1741938181068,0.10127865,82412.0,82411.0,2.21514]
[1741938181542,0.10144775,82412.0,82411.0,2.21514]
[1741938182611,0.10144775,82412.0,82411.0,2.22635811]
[1741938183295,0.02668884,82412.0,82411.0,2.22635811]
[1741938183438,0.0123515,82417.0,82416.0,0.600304]
[1741938183647,4e-07,82420.0,82419.0,0.394633]
[1741938183808,4e-07,82420.0,82419.0,0.399633]
[1741938184011,4e-07,82420.0,82419.0,0.53387484]
[1741938184212,0.0823,82459.0,82443.0,0.25472]
[1741938184433,8e-05,82461.0,82443.0,0.25472]
[1741938184434,1e-06,82444.0,82443.0,1.8779746]
[1741938184668,1e-06,82444.0,82443.0,2.03047691]
[1741938184864,1e-06,82444.0,82443.0,2.10697691]
[1741938185061,1e-06,82444.0,82443.0,1.8061946]
[1741938185355,1e-06,82444.0,82443.0,1.36029541]
[1741938185556,1e-06,82444.0,82443.0,1.20914491]
[1741938185780,1e-06,82444.0,82443.0,1.06070491]
[1741938186003,1e-06,82444.0,82443.0,1.20914491]
[1741938186411,1e-06,82444.0,82443.0,1.21514491]
[1741938186614,1e-06,82444.0,82443.0,1.22106491]
[1741938186823,1e-06,82444.0,82443.0,1.51506491]
[1741938187026,1e-06,82444.0,82443.0,1.52106491]
[1741938187232,1e-06,82444.0,82443.0,1.51506491]
[1741938187406,1e-06,82444.0,82443.0,1.52106491]
[1741938187611,1e-06,82444.0,82443.0,3.02106491]
[1741938187783,1e-06,82444.0,82443.0,2.87270491]
[1741938187984,1e-06,82444.0,82443.0,3.02090491]
[1741938188147,1e-06,82444.0,82443.0,1.52090491]
[1741938188691,1e-06,82444.0,82443.0,1.50890491]
[1741938188896,1e-06,82444.0,82443.0,1.36670491]
[1741938189109,1e-06,82444.0,82443.0,1.51502491]
[1741938189317,1e-06,82444.0,82443.0,1.19122761]
[1741938189939,1e-06,82444.0,82443.0,1.19722761]
[1741938190491,1e-06,82444.0,82443.0,1.19122761]
[1741938190709,1e-06,82444.0,82443.0,1.1740095]
[1741938191983,1e-06,82444.0,82443.0,1.4800095]
[1741938192204,1e-06,82444.0,82443.0,1.49722761]
[1741938192689,1e-06,82444.0,82443.0,1.49122761]
[1741938192842,1e-06,82444.0,82443.0,1.49722761]
[1741938193189,1e-06,82444.0,82443.0,1.48522761]
[1741938193386,1e-06,82444.0,82443.0,1.49122761]
[1741938193688,1e-06,82444.0,82443.0,1.49722761]
[1741938194320,1e-06,82444.0,82443.0,1.34890761]
[1741938194541,0.00017,82444.0,82443.0,1.49722761]
[1741938194884,0.00017,82444.0,82443.0,1.34890761]
[1741938195108,0.00017,82444.0,82443.0,1.49718761]
[1741938197097,0.00017,82444.0,82443.0,1.34890761]
[1741938197230,0.00017,82444.0,82443.0,1.49690761]
[1741938198694,0.00017,82444.0,82443.0,1.34890761]
[1741938198815,0.00017,82444.0,82443.0,0.72610761]
[1741938199017,0.242619,82461.0,82443.0,0.72610761]
[1741938199018,8e-05,82461.0,82460.0,0.012127]
[1741938199240,8e-05,82461.0,82460.0,0.254668]
[1741938199666,8e-05,82461.0,82460.0,0.26588611]
[1741938200447,8e-05,82461.0,82460.0,0.27188611]
[1741938201122,8e-05,82461.0,82460.0,0.41956611]
[1741938201507,8e-05,82461.0,82460.0,0.27188611]
[1741938201715,8e-05,82461.0,82460.0,0.42016611]
[1741938202050,0.0008,82509.0,82494.0,0.242441]
[1741938202167,0.0008,82509.0,82494.0,0.254563]
[1741938202369,1e-07,82499.0,82498.0,0.254551]
[1741938202567,1e-07,82499.0,82498.0,0.27927546]
[1741938202791,0.012117,82525.0,82520.0,0.242364]
[1741938202996,0.254477,82522.0,82509.0,0.012119]
[1741938203210,0.254477,82522.0,82498.0,0.02472446]
[1741938203211,0.0001691,82527.0,82498.0,0.02472446]
[1741938203437,0.242364,82521.0,82512.0,0.254507]
[1741938203618,0.0001691,82527.0,82526.0,0.242347]
[1741938203844,0.0001691,82527.0,82519.0,0.012118]
[1741938204018,0.012116,82531.0,82517.0,0.254489]
[1741938204019,0.242362,82522.0,82517.0,0.254489]
[1741938204223,0.254478,82522.0,82516.0,0.242376]
[1741938204476,0.242363,82521.0,82518.0,0.00868522]
[1741938204633,0.012118,82519.0,82518.0,0.00868522]
[1741938204864,0.012118,82519.0,82518.0,0.00909472]
[1741938205477,0.242366,82520.0,82518.0,0.00909472]
[1741938205694,0.254475,82523.0,82518.0,0.00909472]
[1741938206043,0.43789076,82530.0,82518.0,0.00909472]
[1741938206044,0.3,82532.0,82527.0,0.012117]
[1741938206362,0.012116,82535.0,82530.0,0.242334]
[1741938206562,0.542328,82533.0,82530.0,0.242334]
[1741938206994,0.3,82533.0,82528.0,0.24234]
[1741938207507,0.3,82531.0,82528.0,0.24234]
[1741938207703,0.3,82531.0,82528.0,0.242339]
[1741938208062,0.3,82531.0,82529.0,0.242338]
[1741938208264,0.3,82531.0,82529.0,0.254454]
[1741938208472,0.254439,82535.0,82530.0,0.242334]
[1741938208473,0.3,82533.0,82530.0,0.242334]
[1741938208667,0.3,82533.0,82531.0,0.242332]
[1741938208851,0.24231,82539.0,82531.0,0.254448]
[1741938208852,0.26896585,82539.0,82531.0,0.254448]
[1741938209054,0.242316,82537.0,82531.0,0.254448]
[1741938209278,0.242324,82534.0,82530.0,0.012116]
[1741938209471,0.242327,82533.0,82529.0,0.254452]
[1741938209719,0.1,82535.0,82534.0,0.25444]
[1741938210516,0.242295,82544.0,82540.0,0.012115]
[1741938210694,0.012114,82545.0,82537.0,0.012115]
[1741938210925,0.242304,82541.0,82537.0,0.012115]
[1741938211147,0.012115,82538.0,82529.0,0.14772]
[1741938211490,0.012115,82541.0,82535.0,0.242319]
[1741938211719,0.254421,82540.0,82535.0,0.242319]
[1741938211926,0.012115,82539.0,82533.0,0.25444]
[1741938212100,0.19555276,82543.0,82527.0,0.012117]
[1741938212338,0.012116,82535.0,82529.0,0.012116]
[1741938212546,0.242323,82535.0,82532.0,0.242329]
[1741938212749,0.242307,82540.0,82536.0,0.242317]
[1741938212950,0.012114,82543.0,82540.0,0.012115]
[1741938212951,0.3,82543.0,82540.0,0.012115]
[1741938213099,0.3,82543.0,82538.0,0.24231]
[1741938213303,0.012115,82537.0,82532.0,0.242329]
[1741938213505,0.242316,82537.0,82533.0,0.242326]
[1741938213743,0.242302,82542.0,82537.0,0.25443]
[1741938213949,0.242312,82538.0,82534.0,0.254438]
[1741938214376,0.242316,82537.0,82534.0,0.242322]
[1741938214590,0.01898728,82538.0,82536.0,0.242318]
[1741938214818,0.01898728,82538.0,82536.0,0.254433]
[1741938216021,0.01898728,82538.0,82537.0,0.012115]
[1741938216958,0.01898728,82538.0,82537.0,0.25443]
[1741938217451,0.254393,82551.0,82542.0,0.254413]
[1741938217744,0.24229,82546.0,82543.0,0.242295]
[1741938218117,0.012114,82548.0,82543.0,0.242295]
[1741938218316,0.012113,82550.0,82543.0,0.242297]
[1741938218500,0.2424457,82550.0,82542.0,0.012115]
[1741938218724,0.24228,82549.0,82542.0,0.012115]
[1741938218927,0.24228,82549.0,82546.0,0.242288]
[1741938219132,0.0001687,82550.0,82548.0,0.012114]
[1741938219411,0.0001687,82550.0,82549.0,0.012114]
[1741938219675,0.0001687,82550.0,82549.0,0.254394]
[1741938220544,0.0001687,82550.0,82542.0,0.2548215]
[1741938220744,0.242297,82544.0,82542.0,0.0004095]
[1741938220951,0.242289,82546.0,82542.0,0.0004095]
[1741938221176,0.254399,82548.0,82544.0,0.242294]
[1741938221385,0.254399,82548.0,82542.0,0.0125245]
[1741938221386,0.242297,82543.0,82542.0,0.0004095]
[1741938221856,0.242295,82544.0,82542.0,0.0004095]
[1741938222270,0.254411,82543.0,82542.0,0.0004095]
[1741938224174,0.254409,82544.0,82542.0,0.0004095]
[1741938224498,0.24227,82553.0,82542.0,0.0004095]
[1741938224499,0.242297,82543.0,82542.0,0.0004095]
[1741938224667,0.254411,82543.0,82542.0,0.0004095]
[1741938225379,0.554411,82543.0,82542.0,0.0004095]
[1741938227207,0.56895185,82543.0,82542.0,0.0004095]
[1741938227801,0.01454085,82548.0,82542.0,0.0004095]
[1741938228001,0.242289,82546.0,82542.0,0.0004095]
[1741938228405,0.2544,82549.0,82542.0,0.0004095]
[1741938228610,0.242288,82547.0,82543.0,0.254411]
[1741938228936,0.242288,82547.0,82543.0,0.242297]
[1741938229210,0.012114,82547.0,82542.0,0.2427085]
[1741938229417,0.242289,82546.0,82542.0,0.2427085]
[1741938229636,0.242289,82546.0,82542.0,0.0004095]
[1741938229806,0.254409,82544.0,82542.0,0.0004095]
[1741938230015,0.254411,82543.0,82542.0,0.0004095]
[1741938230215,0.012115,82538.0,82532.0,0.242327]
[1741938230604,0.012115,82538.0,82531.0,0.254448]
[1741938230605,0.242323,82535.0,82531.0,0.254448]
[1741938230804,0.254433,82536.0,82533.0,0.242326]
[1741938231000,0.01898658,82535.0,82533.0,0.242326]
[1741938231241,0.01898658,82535.0,82528.0,0.01252669]
[1741938231242,0.254455,82529.0,82528.0,0.00040969]
[1741938231603,0.012116,82533.0,82528.0,0.00040969]
[1741938231811,0.01898658,82535.0,82534.0,0.25444]
[1741938232117,0.01898658,82535.0,82534.0,0.33224]
[1741938232683,0.01898658,82535.0,82534.0,0.38174]
[1741938232837,0.2414257,82557.0,82553.0,0.242267]
[1741938233169,0.012112,82556.0,82549.0,0.254394]
[1741938233389,0.26124333,82557.0,82553.0,0.242267]
[1741938233576,0.01898433,82557.0,82553.0,0.242268]
[1741938233727,0.24226,82556.0,82553.0,0.242268]
[1741938233929,0.24226,82556.0,82552.0,0.242268]
[1741938234154,0.012113,82555.0,82552.0,0.24267969]
[1741938234356,0.012113,82555.0,82552.0,0.24268069]
[1741938234357,0.242262,82555.0,82552.0,0.24268069]
[1741938234557,0.27335833,82557.0,82553.0,0.242268]
[1741938234768,0.01898433,82557.0,82555.0,0.242262]
[1741938234975,0.01898433,82557.0,82553.0,0.254381]
[1741938235173,0.012112,82556.0,82552.0,0.00040969]
[1741938235380,0.242265,82555.0,82552.0,0.24267969]
[1741938235722,0.01898433,82557.0,82554.0,0.012113]
[1741938235998,0.01898433,82557.0,82556.0,0.242259]
[1741938236199,0.242259,82556.0,82553.0,0.242267]
[1741938236401,0.01898433,82557.0,82554.0,0.242263]
[1741938236609,0.26124233,82557.0,82553.0,0.242267]
[1741938236764,0.26124133,82557.0,82553.0,0.242267]
[1741938237193,0.26124133,82557.0,82554.0,0.242264]
[1741938237396,0.01898433,82557.0,82554.0,0.242265]
[1741938237776,0.26124133,82557.0,82553.0,0.254381]
[1741938237979,0.242256,82557.0,82554.0,0.242264]
[1741938238197,0.20717139,82558.0,82554.0,0.242264]
[1741938238379,0.242254,82558.0,82554.0,0.254377]
[1741938238579,0.242255,82558.0,82553.0,0.254381]
[1741938239122,0.3,82559.0,82557.0,0.242256]
[1741938239273,0.3,82559.0,82556.0,0.242259]
[1741938239274,0.3,82559.0,82556.0,0.254371]
[1741938239483,0.3,82559.0,82557.0,0.242254]
[1741938239679,0.3,82559.0,82555.0,0.012113]
[1741938239883,0.3,82559.0,82558.0,0.242253]
[1741938240270,0.3,82559.0,82555.0,0.254373]
[1741938240271,0.242256,82557.0,82552.0,0.00040969]
[1741938240463,0.554363,82559.0,82554.0,0.242265]
[1741938240686,0.542251,82559.0,82553.0,0.242266]
[1741938241095,0.012112,82557.0,82552.0,0.00040969]
[1741938241323,0.254377,82555.0,82552.0,0.00040969]
[1741938241780,0.01898355,82556.0,82552.0,0.00040969]
[1741938241909,0.26124355,82556.0,82552.0,0.00040969]
[1741938242105,0.01898355,82556.0,82553.0,0.012113]
[1741938242319,0.01898355,82556.0,82554.0,0.242265]
[1741938242520,0.01898355,82556.0,82555.0,0.254375]
[1741938243789,0.01898355,82556.0,82555.0,0.330775]
[1741938243924,0.1,82557.0,82556.0,0.254371]
[1741938244124,0.1,82557.0,82556.0,0.299371]
[1741938244867,0.00123759,82570.0,82569.0,0.254332]
[1741938245030,0.00123759,82570.0,82569.0,0.336132]
[1741938245232,5.9e-07,82570.0,82569.0,0.7877466]
[1741938245434,9e-08,82581.0,82578.0,0.0786]
[1741938245697,9e-08,82581.0,82580.0,0.254298]
[1741938246191,9e-08,82581.0,82580.0,0.50239899]
[1741938246392,9e-08,82581.0,82580.0,0.7871126]
[1741938246752,9e-08,82581.0,82580.0,0.78752274]
[1741938247355,9e-08,82581.0,82580.0,0.38310814]
[1741938248571,9e-08,82581.0,82580.0,0.68310814]
[1741938249006,9e-08,82581.0,82580.0,0.38310814]
[1741938249565,9e-08,82581.0,82580.0,0.52986814]
[1741938250423,9e-08,82581.0,82580.0,0.38310814]
[1741938250624,9e-08,82581.0,82580.0,0.52978814]
[1741938250832,9e-08,82581.0,82580.0,0.47998814]
[1741938251036,9e-08,82581.0,82580.0,0.33330814]
[1741938251237,9e-08,82581.0,82580.0,0.00041014]
[1741938251439,9e-08,82581.0,82580.0,0.01251914]
[1741938251640,0.00069955,82589.0,82588.0,0.242165]
[1741938251924,0.00069955,82589.0,82585.0,0.242171]
[1741938252126,0.24286255,82589.0,82585.0,0.242171]
[1741938252327,0.24286255,82589.0,82586.0,0.24217]
[1741938252570,0.24286255,82589.0,82585.0,0.242171]
[1741938252882,0.242167,82588.0,82584.0,0.242176]
[1741938253057,0.00069955,82589.0,82583.0,0.012109]
[1741938253256,0.00069955,82589.0,82580.0,0.01251914]
[1741938253458,0.242174,82585.0,82581.0,0.242183]
[1741938253663,0.00069955,82589.0,82583.0,0.012109]
[1741938253865,0.00069955,82589.0,82585.0,0.254276]
[1741938254050,0.00069955,82589.0,82586.0,0.24217]
[1741938254249,0.242166,82588.0,82585.0,0.254281]
[1741938254455,0.00069955,82589.0,82586.0,0.242171]
[1741938254654,0.24286355,82589.0,82585.0,0.254281]
[1741938254891,0.00069955,82589.0,82586.0,0.24217]
[1741938255324,0.00069955,82589.0,82588.0,0.012108]
[1741938256684,0.00069955,82589.0,82588.0,0.087508]
[1741938256891,0.00069955,82589.0,82588.0,0.08871874]
[1741938257131,0.00069955,82589.0,82588.0,0.28233874]
[1741938257334,0.00069955,82589.0,82588.0,0.281128]
[1741938257780,0.00069955,82589.0,82588.0,0.523293]
[1741938258172,0.00086825,82589.0,82588.0,0.523293]
[1741938258574,2.5e-07,82589.0,82588.0,0.96253484]
[1741938258729,2.5e-07,82589.0,82588.0,0.94299399]
[1741938259075,2.5e-07,82589.0,82588.0,0.96253484]
[1741938259277,2.5e-07,82589.0,82588.0,2.06224944]
[1741938260081,2.5e-07,82589.0,82588.0,3.54270859]
[1741938261033,2.5e-07,82589.0,82588.0,1.9230076]
[1741938262009,2.5e-07,82589.0,82588.0,1.2271876]
[1741938262211,2.5e-07,82589.0,82588.0,0.9271876]
[1741938262425,2.5e-07,82589.0,82588.0,0.9272276]
[1741938263158,2.5e-07,82589.0,82588.0,1.34692859]
[1741938264164,2.5e-07,82589.0,82588.0,1.35192859]
[1741938265530,0.012,82600.0,82599.0,0.336739]
[1741938265853,0.012,82600.0,82599.0,1.5101136]
[1741938267388,0.012,82600.0,82599.0,1.6557936]
[1741938267611,0.012,82600.0,82599.0,1.1733746]
[1741938267820,0.012,82600.0,82599.0,1.4155076]
[1741938268019,0.012,82600.0,82599.0,1.1733746]
[1741938268227,0.266236,82600.0,82599.0,0.4044146]
[1741938268450,0.242157,82591.0,82584.0,0.242177]
[1741938268651,0.24216,82590.0,82584.0,0.242177]
[1741938268877,0.012107,82592.0,82583.0,0.012109]
[1741938269090,0.012107,82593.0,82585.0,0.012108]
[1741938269292,0.242155,82592.0,82587.0,0.254275]
[1741938269494,0.242145,82595.0,82589.0,0.012108]
[1741938269699,0.254243,82598.0,82591.0,0.012107]
[1741938269700,0.012106,82598.0,82591.0,0.012107]
[1741938269896,0.40755276,82600.0,82591.0,0.012107]
[1741938270190,0.40755276,82600.0,82588.0,0.0003372]
[1741938270191,0.25427,82589.0,82588.0,0.0003372]
[1741938271019,0.33357,82589.0,82588.0,0.0003372]
[1741938271475,0.63357,82589.0,82588.0,0.0003372]
[1741938271701,0.70726155,82589.0,82588.0,2e-07]
[1741938271936,0.82722244,82589.0,82588.0,2e-07]
[1741938272139,0.84620173,82589.0,82588.0,2e-07]
[1741938272429,0.554295,82581.0,82580.0,0.00041014]
[1741938272641,0.56883585,82581.0,82580.0,0.00041014]
[1741938272842,0.65235904,82581.0,82580.0,0.00041014]
[1741938273151,0.56883585,82581.0,82580.0,0.00041014]
[1741938274256,0.57777831,82581.0,82580.0,0.00041014]
[1741938274607,0.242263,82555.0,82551.0,0.0003374]
[1741938274726,0.254383,82553.0,82552.0,0.00041062]
[1741938275176,0.242269,82554.0,82552.0,0.00041062]
[1741938275380,0.01898198,82553.0,82552.0,0.00041062]
[1741938276188,0.05372138,82553.0,82552.0,0.00041062]
[1741938277194,0.04160838,82553.0,82552.0,0.00041062]
[1741938277421,0.01898198,82553.0,82552.0,0.01252362]
[1741938277819,0.01898198,82553.0,82552.0,0.00041062]
[1741938278013,0.01898198,82553.0,82552.0,0.01252362]
[1741938283236,0.01898198,82553.0,82552.0,0.25479462]
[1741938283445,0.254312,82576.0,82571.0,0.242212]
[1741938283652,0.14524,82583.0,82580.0,0.254298]
[1741938283915,0.242192,82579.0,82575.0,0.254314]
[1741938284052,0.254298,82580.0,82576.0,0.242201]
[1741938284250,0.242196,82578.0,82575.0,0.254314]
[1741938284455,0.542195,82578.0,82575.0,0.254313]
[1741938284852,0.3,82578.0,82576.0,0.2422]
[1741938285053,0.542195,82578.0,82575.0,0.00041062]
[1741938285358,0.254311,82576.0,82575.0,0.00041062]
[1741938285783,0.37427189,82576.0,82575.0,0.00041062]
[1741938286650,0.38881274,82576.0,82575.0,0.00041062]
[1741938286876,0.68881274,82576.0,82575.0,0.00041062]
[1741938287226,0.51344743,82576.0,82575.0,0.00041062]
[1741938287567,0.75564843,82576.0,82575.0,0.00041062]
[1741938287952,0.71429185,82576.0,82575.0,0.00041062]
[1741938288530,0.56885185,82576.0,82575.0,0.00041062]
[1741938289359,0.554311,82576.0,82575.0,0.00041062]
[1741938290163,0.254311,82576.0,82575.0,0.00041062]
[1741938290852,0.242201,82576.0,82575.0,0.00041062]
[1741938291180,0.254298,82580.0,82575.0,0.00041062]
[1741938291181,0.2,82581.0,82580.0,0.242189]
[1741938291383,0.2,82581.0,82580.0,0.254298]
[1741938292188,0.242154,82592.0,82584.0,0.25428]
[1741938292362,0.012107,82596.0,82590.0,0.242157]
[1741938292541,0.242158,82591.0,82587.0,0.242167]
[1741938292758,0.3,82590.0,82587.0,0.242167]
[1741938292919,0.3,82590.0,82584.0,0.242177]
[1741938292920,0.012108,82589.0,82584.0,0.242177]
[1741938293120,0.32257648,82590.0,82586.0,0.242171]
[1741938293461,0.242168,82588.0,82584.0,0.242176]
[1741938293608,0.254276,82588.0,82583.0,0.24218]
[1741938293805,0.254276,82588.0,82562.0,0.14508]
[1741938293806,0.012109,82583.0,82562.0,0.14508]
[1741938294007,0.542201,82576.0,82562.0,0.24224]
[1741938294223,0.554311,82576.0,82559.0,0.14492]
[1741938294492,0.554311,82576.0,82559.0,0.399282]
[1741938294662,0.554311,82576.0,82559.0,0.14492]
[1741938294865,0.554311,82576.0,82563.0,0.242236]
[1741938295046,0.554311,82576.0,82561.0,0.012112]
[1741938295282,0.554311,82576.0,82567.0,0.242225]
[1741938295447,0.554311,82576.0,82566.0,0.012111]
[1741938295670,0.57688748,82576.0,82566.0,0.012111]
[1741938295915,0.57688748,82576.0,82567.0,0.012111]
[1741938296118,0.57688748,82576.0,82566.0,0.254338]
[1741938296295,0.57688748,82576.0,82566.0,0.012111]
[1741938296455,0.57688748,82576.0,82575.0,0.00322902]
[1741938296654,0.57705668,82576.0,82575.0,0.00322902]
[1741938297678,0.59603565,82576.0,82575.0,0.00322902]
[1741938299208,0.34172465,82576.0,82575.0,0.00322902]
[1741938299411,0.59603565,82576.0,82575.0,0.00322902]
[1741938299607,0.34172465,82576.0,82575.0,0.26983877]
[1741938300116,0.34172465,82576.0,82575.0,0.01552477]
[1741938300327,0.59603565,82576.0,82575.0,0.01552477]
[1741938300528,0.34172465,82576.0,82575.0,0.01552477]
[1741938300727,0.34172465,82576.0,82575.0,0.29561295]
[1741938301066,0.04172465,82576.0,82575.0,0.37201295]
[1741938301875,0.02274568,82576.0,82575.0,0.37201295]
[1741938302840,0.02274568,82576.0,82575.0,0.34623877]
[1741938303241,0.02274568,82576.0,82575.0,0.26983877]
[1741938303824,0.0001692,82576.0,82575.0,0.26983877]
[1741938306669,0.2544802,82576.0,82575.0,0.01552477]
[1741938307123,0.5544802,82576.0,82575.0,0.01552477]
[1741938307902,0.5544802,82576.0,82575.0,0.01492477]
[1741938308835,0.5423702,82576.0,82575.0,0.01492477]
[1741938309611,0.5544802,82576.0,82575.0,0.01492477]
[1741938311310,0.66002501,82576.0,82575.0,0.01492477]
[1741938311479,0.5544802,82576.0,82575.0,0.01492477]
[1741938312518,0.57717865,82576.0,82575.0,0.01492477]
[1741938320127,0.5917195,82576.0,82575.0,7.7e-07]
[1741938320975,0.02286765,82576.0,82575.0,0.01244917]
[1741938321192,0.02286765,82576.0,82575.0,0.25465317]
[1741938321631,0.02286765,82576.0,82575.0,0.00033917]
[1741938321831,0.02286765,82576.0,82575.0,0.24254317]
[1741938322040,0.02286765,82576.0,82575.0,0.25465317]
[1741938322246,0.27717865,82576.0,82575.0,0.00033917]
[1741938323206,0.63305896,82576.0,82575.0,0.00033917]
[1741938323800,0.56902105,82576.0,82575.0,0.00033917]
[1741938324013,0.71246105,82576.0,82575.0,0.00033917]
[1741938326542,0.242263,82555.0,82552.0,0.22094537]
[1741938326720,0.242263,82555.0,82552.0,0.22135655]
[1741938327121,0.3,82556.0,82553.0,0.242268]
[1741938327325,0.3,82556.0,82552.0,0.24268218]
[1741938327326,0.3,82556.0,82552.0,0.25479418]
[1741938327510,0.542261,82556.0,82552.0,0.00041118]
[1741938327711,0.242265,82554.0,82552.0,0.00041118]
[1741938327984,0.242262,82555.0,82552.0,0.24268118]
[1741938328858,0.242262,82555.0,82552.0,0.00041118]
[1741938329053,0.242262,82555.0,82552.0,0.24268218]
[1741938329490,0.242262,82555.0,82552.0,0.00041118]
[1741938329899,0.554371,82556.0,82552.0,0.00041118]
[1741938330098,0.242264,82555.0,82552.0,0.00041118]
[1741938330309,0.254381,82553.0,82552.0,0.00041118]
[1741938330545,0.554381,82553.0,82552.0,0.00041118]
[1741938332611,0.3,82553.0,82552.0,0.00041118]
[1741938332743,0.3,82553.0,82552.0,0.00074958]
[1741938332948,0.554381,82553.0,82552.0,0.00074958]
[1741938334714,0.3,82553.0,82552.0,0.00074958]
[1741938335240,0.542268,82553.0,82552.0,0.00074958]
[1741938336025,0.554381,82553.0,82552.0,0.00074958]
[1741938336684,0.67434189,82553.0,82552.0,0.00074958]
[1741938337158,0.554381,82553.0,82552.0,0.00074958]
[1741938338143,0.3,82553.0,82552.0,0.24302058]